Cogmind - Beta 9 *** ADVENTURER MODE // 2019.10.27 @ 23:42:03 Player: Armok Result: Destroyed by as-72901 with Assembled Blade Performance ------------- Evolutions (0) 0 Regions Visited (2) 400 Robots Destroyed (25) 125 Value Destroyed (523) 523 Prototype IDs (1) 20 Alien Tech Used (0) 0 Bonus (20) 20 TOTAL SCORE: 1088 Bonus ------- Follower Combat Kills 33 Friendly Fire -13 Cogmind --------- Core Integrity 0/250 Matter 288/300 Energy 280/280 System Corruption 0% Temperature Cool (0) Location -10/Mines Parts ------- Power (1) Cooled Ion Engine Propulsion (2) Wheel Wheel Utility (2) Large Storage Unit Visual Processing Unit Weapon (2) Light Assault Rifle Heavy Assault Rifle Inventory (10) Light Ion Engine Cooled Ion Engine Light Nuclear Core Wheel Wheel Improved Heat Sink Targeting Computer Particle Gun Light Assault Rifle Mining Laser Peak State ------------ Power Cooled Ion Engine Propulsion VTOL Module VTOL Module Utility Small Storage Unit Visual Processing Unit Weapon Light Assault Rifle Light Assault Rifle Inventory Cooled Ion Engine Cooled Ion Engine VTOL Module VTOL Module Propulsion Shielding [Rating: 13] Favorites ----------- Power Cooled Ion Engine Engine Cooled Ion Engine Propulsion Wheel Wheel Wheel Flight Unit VTOL Module Utility Visual Processing Unit Storage Large Storage Unit Processor Visual Processing Unit Weapon Light Assault Rifle Energy Gun Particle Gun Ballistic Gun Light Assault Rifle Special Weapon Mining Laser Build | -11 -10 -10 ------- Run | Scr Mat Min Slots Evolved . | . . . Power . | . . . Propulsion . | . . . Utility . | . . . Weapon . | . . . Parts Attached 27 | 6 19 2 Power 3 | 1 2 . Engine 3 | 1 2 . Core . | . . . Reactor . | . . . Propulsion 11 | 2 9 . Treads . | . . . Leg . | . . . Wheel 8 | 2 6 . Hover . | . . . Flight 3 | . 3 . Utility 5 | 1 4 . Device . | . . . Storage 4 | 1 3 . Processor 1 | . 1 . Hackware . | . . . Protection . | . . . Artifact . | . . . Weapon 8 | 2 4 2 Energy Gun 1 | . 1 . Energy Cannon . | . . . Ballistic Gun 6 | 2 2 2 Ballistic Cannon . | . . . Launcher . | . . . Special Weapon 1 | . 1 . Impact Weapon . | . . . Slashing Weapon . | . . . Piercing Weapon . | . . . Special Melee Weapon . | . . . Unidentified Prototypes 1 | . 1 . Parts Lost 4 | . 3 1 Power . | . . . Propulsion 2 | . 2 . Utility . | . . . Weapon 2 | . 1 1 Highest Loss Streak 1 | . 1 1 Average Slot Usage (%) 95 | . 91 100 Engine 13 | . 13 14 Wheel 23 | . 20 28 Flight 2 | . 3 . Storage 13 | . 12 14 Processor 13 | . 13 14 Ballistic Gun 25 | . 23 28 Special Weapon 1 | . 2 . Naked Turns . | . . . Heaviest Build 28 | 9 28 28 Greatest Support 26 | 26 26 20 Greatest Overweight (x) 5 | . 5 1 Average Overweight (x) . | . . 1 Largest Inventory Capacity 10 | 6 10 10 Average Capacity 8 | 4 8 10 Most Carried 10 | 4 10 10 Average Carried 6 | 1 6 7 Final Capacity 10 | . . 10 Final Carried 10 | . . 10 Class Distribution -------------------- 71% | Mutant 28% | Scavenger-Mutant Dominant Class ---------------- Mutant | -10/Materials Scavenger-Mutant | -10/Mines Resources | -11 -10 -10 ----------- Run | Scr Mat Min Matter Collected 632 | 218 287 127 Remotely . | . . . Salvage Created 623 | . 237 386 Parts 50 | . 21 29 Haulers Intercepted . | . . . Recyclers Shooed . | . . . Parts Field Recycled . | . . . Retrieved Matter . | . . . Parts Self-Destructed . | . . . Prevented . | . . . Kills | -11 -10 -10 ------- Run | Scr Mat Min Combat Hostiles Destroyed 22 | . 8 14 Guns 22 | . 8 14 Classes Destroyed 6 | . 4 2 Tunneler 2 | . 1 1 Watcher 1 | . 1 . Swarmer 9 | . 3 6 Grunt 9 | . 5 4 Sentry 1 | . . 1 Assembled 3 | . . 3 Best Kill Streak 4 | . 3 4 Combat Bots Only 4 | . 3 4 Max Kills in Single Turn 2 | . 1 2 Gunslinging 1 | . . 1 Exploded . | . . . Melee . | . . . Uniques/NPCs Destroyed . | . . . Combat | -11 -10 -10 -------- Run | Scr Mat Min Damage Taken 907 | . 391 516 Core 259 | . 74 185 Absorbed by Shields . | . . . Core Remaining (%) 100 | 100 . . Volleys Fired 88 | . 47 41 Largest 2 | . 2 2 Hottest 165 | . 165 43 Shots Fired 169 | . 89 80 Gun 164 | . 84 80 Cannon . | . . . Launcher . | . . . Special 5 | . 5 . Kinetic 161 | . 81 80 Thermal 8 | . 8 . Explosive . | . . . Electromagnetic . | . . . Robot Hit Streak 13 | . 12 13 Robot Miss Streak 2 | . 2 2 Penetration Max . | . . . Secondary Targets 4 | . . 4 Max Gunslinging Chain 1 | . . 1 Shots Hit Robots 122 | . 69 53 Core Hits 60 | . 29 31 Critical Hits 1 | . 1 . Critical Kills . | . . . Critical Parts Destroyed 1 | . 1 . Melee Attacks . | . . . Impact . | . . . Slashing . | . . . Piercing . | . . . Sneak Attacks . | . . . Combat Hostiles . | . . . Follow-up Attacks . | . . . Damage Inflicted 1102 | . 619 483 Guns 1006 | . 523 483 Cannons . | . . . Explosions . | . . . Melee . | . . . Ramming . | . . . Kinetic 958 | . 475 483 Thermal 144 | . 144 . Explosive . | . . . Electromagnetic . | . . . Impact . | . . . Slashing . | . . . Piercing . | . . . Highest Corruption . | . . . Average Corruption . | . . . Corruption Purged . | . . . Overload Shots . | . . . Overflow Damage . | . . . Projectiles . | . . . Explosions . | . . . Melee . | . . . Knockbacks . | . . . Impact . | . . . Kinetic . | . . . Secondary . | . . . Self-Inflicted Damage . | . . . Shots . | . . . Rammed . | . . . Targets Rammed . | . . . Kicked . | . . . Crushed . | . . . Highest Temperature 195 | . 195 12 Average Temperature 31 | . 42 5 Received Heat Transfer 414 | . 240 174 Siege Activations . | . . . Robots Corrupted . | . . . Combat Hostiles . | . . . Parts Fried . | . . . Impact Corruptions . | . . . Robots Melted . | . . . Combat Hostiles . | . . . Parts Melted . | . . . Heat Transferred 311 | . 311 . Parts Sabotaged . | . . . Parts Stolen . | . . . Parts Stripped . | . . . Power Chain Reactions . | . . . Missiles Intercepted . | . . . Alert | -11 -10 -10 ------- Run | Scr Mat Min Peak Influence 222 | . 222 171 Average Influence 69 | . 49 103 Maximum Alert Level 1 | . 1 . Low Security (%) 97 | . . . Level 1 2 | . . . Level 2 . | . . . Level 3 . | . . . Level 4 . | . . . Level 5 . | . . . High Security . | . . . Max Security . | . . . Squads Dispatched 1 | . 1 . Investigation 1 | . 1 . Extermination . | . . . Reinforcement . | . . . Assault . | . . . Garrison . | . . . Intercept . | . . . Construction Impeded . | . . . Haulers Reinforced . | . . . Stealth | -11 -10 -10 --------- Run | Scr Mat Min Distress Signals 1 | . 1 . Communications Jammed . | . . . Distress Signals . | . . . Times Spotted 46 | . 16 30 Peak Tracking Total 12 | . 5 12 Tactical Retreats 4 | . . 4 Traps | -11 -10 -10 ------- Run | Scr Mat Min Traps Triggered 2 | . 2 . Indirectly . | . . . Trap Hack Attempts . | . . . Triggered . | . . . Disarmed . | . . . Reprogrammed . | . . . Reused . | . . . Traps Extracted . | . . . Installed . | . . . Triggered . | . . . Machines | -11 -10 -10 ---------- Run | Scr Mat Min Machines Disabled . | . . . Max in Single Turn . | . . . Machines Sabotaged . | . . . Garrisons Compromised . | . . . Overloaded Fab Kills . | . . . Fab Network Shutdowns . | . . . Hacking | -11 -10 -10 --------- Run | Scr Mat Min Machines Accessed 7 | . 7 . Terminals 7 | . 7 . Fabricators . | . . . Repair Stations . | . . . Recycling Units . | . . . Scanalyzers . | . . . Garrison Access . | . . . Total Hacks 20 | . 20 . Successful 16 | . 16 . Failed 4 | . 4 . Catastrophic . | . . . Database Lockouts . | . . . Manual 12 | . 12 . Terminals 20 | . 20 . Fabricators . | . . . Repair Stations . | . . . Recycling Units . | . . . Scanalyzers . | . . . Garrison Access . | . . . Terminal Hacks 6 | . 6 . Alert Level 2 | . 2 . Unreport Threat 1 | . 1 . Locate Traps 2 | . 2 . Dispatch Records 1 | . 1 . Fabricator Hacks . | . . . Repair Station Hacks . | . . . Recycling Unit Hacks . | . . . Scanalyzer . | . . . Garrison Access Hacks . | . . . Unauthorized Hacks 22 | . 22 . Terminals 10 | . 10 . Track 1 | . 1 . Assimilate 2 | . 2 . Botnet 7 | . 7 . Fabricators . | . . . Repair Stations . | . . . Recycling Units . | . . . Scanalyzers . | . . . Garrison Access . | . . . Data Cores Recovered . | . . . Used . | . . . Hacking Detections 6 | . 6 . Full Trace Events . | . . . Feedback Events . | . . . Feedback Blocked . | . . . Robot Schematics Acquired . | . . . Robots Built . | . . . Matter . | . . . Time . | . . . Total Robot Build Rating . | . . . Part Schematics Acquired . | . . . Parts Built . | . . . Matter . | . . . Time . | . . . Total Part Build Rating . | . . . Parts Repaired . | . . . Time . | . . . Parts Recycled . | . . . Recycled Matter . | . . . Retrieved Matter . | . . . Retrieved Components . | . . . Parts Scanalyzed . | . . . Part Schematics Acquired . | . . . Parts Damaged . | . . . Bothacking | -11 -10 -10 ------------ Run | Scr Mat Min Used RIF Installer . | . . . Robots Hacked . | . . . Non-combat . | . . . Combat . | . . . Robot Hacks Applied . | . . . Relay Couplers Released . | . . . Robots Rewired . | . . . Allies Hacked . | . . . Hacks Repelled . | . . . Allies | -11 -10 -10 -------- Run | Scr Mat Min Total Allies 1 | . . 1 Largest Group 1 | . . 1 Highest-Rated Group 31 | . . 31 Highest-Rated Ally 31 | . . 31 Total Orders . | . . . Ally Attacks 7 | . . 7 Total Damage 148 | . . 148 Kills 1 | . . 1 Allies Corrupted . | . . . Allies Melted . | . . . Intel | -11 -10 -10 ------- Run | Scr Mat Min Robot Analysis Total . | . . . Derelict Logs Recovered 2 | . . 2 Drone Launches . | . . . Drone Recoveries . | . . . Exploration | -11 -10 -10 ------------- Run | Scr Mat Min Turns Passed 1645 | 41 965 639 Spaces Moved 1377 | 34 825 518 Core 8 | 7 1 . Treads . | . . . Legs . | . . . Wheels 1129 | 27 584 518 Hover . | . . . Flight 240 | . 240 . Fastest Speed 37 | 50 37 90 Average Speed 81 | 81 76 90 Slowest Speed 300 | 90 300 90 Overloaded Moves . | . . . Propulsion Burnouts . | . . . Robots Hopped 4 | . 4 . Cave-ins Triggered . | . . . Exploration Rate (%) 56 | 2 98 70 Regions Visited 2 Branch Regions 1 Pre-discovered Areas 1 | . . 1 Known Exits Taken . | . . . Unknown Exits Taken 2 | 1 1 . Scrap Searched 1 | . . 1 Spaces Dug . | . . . Terrain Destroyed 1 | . 1 . Melee . | . . . Projectile 1 | . 1 . AOE . | . . . Actions | -11 -10 -10 --------- Run | Scr Mat Min Total 1751 | 47 1078 626 Wait 191 | . 143 48 Move 1367 | 33 816 518 Hop 4 | . 4 . Pick Up 49 | 8 28 13 Fast Attach . | . . . Attach 17 | 6 10 1 Detach . | . . . Swap 10 | . 9 1 Drop 25 | . 21 4 Fire 88 | . 47 41 Melee . | . . . Ram . | . . . Kick . | . . . Crush . | . . . Escape Stasis . | . . . Rewire . | . . . Trap . | . . . Miscellaneous . | . . . Route ------- -11/Scrapyard -10/Materials (discovered 5 exits: *Mat x3 / [*Min x2]) -10/Mines (discovered 2 exits: *Mat x2) History --------- Turn | Location | Event 25 | -11/Scrapyard | Discovered new exit (range 16) 42 | -11/Scrapyard | Entered Materials 279 | -10/Materials | Discovered new exit (range 14) 313 | -10/Materials | Build established: Mutant 429 | -10/Materials | Discovered new exit (range 7) 556 | -10/Materials | Discovered new exit (range 11) 830 | -10/Materials | Discovered new exit (range 6) 924 | -10/Materials | Discovered new exit (range 18) 1007 | -10/Materials | Entered Mines 1058 | -10/Mines | Learned location of Zion (-7) 1097 | -10/Mines | Discovered new exit (range 16) 1119 | -10/Mines | Identified exit to Materials 1168 | -10/Mines | Core integrity fell below 50% 1233 | -10/Mines | Received a Mining Laser from a helpful Derelict 1486 | -10/Mines | Build established: Scavenger-Mutant 1497 | -10/Mines | Assembled infested the area 1502 | -10/Mines | Assisted by a Guerilla fighting off Assembled 1520 | -10/Mines | Core integrity fell below 20% 1646 | -10/Mines | Destroyed by as-72901 with Assembled Blade Last Messages --------------- 01516_ as-09921 destroyed. 01519_ TO-37Q(h) shuts down. 01520_ U-05 Engineer suffers critical hit. 01520_ U-05 Engineer destroyed. 01523_ as-06611 destroyed. 01523_ Switching to secondary target: as-99968. 01530_ TO-37Q(h) destroyed. 01533_ C-30 ARC bursts open, deploying its payload. 01533_ D-53 Grenadier unfolds itself. 01537_ K-01 Serf collects debris. 01573_ as-23478 destroyed. 01576_ S-10 Pest destroyed. 01580_ Acquired 19 matter. 01582_ S-10 Pest destroyed. 01583_ Acquired 11 matter. 01585_ Acquired 18 matter. 01595_ Acquired 6 matter. 01638_ Knocked back. 01644_ as-19780 destroyed. 01644_ Switching to secondary target: as-72901. Map ----- +----------------------------------------------------+ | | | | | | | | | | | | | | | | | | | ?????????????????????????????????????????????????? | | ?????????????????????????????????????????????????? | | ?????????????????????????????????????????????????? | | ?????????########??????????????????#######???????? | | ?????????# #??????????????????# #???????? | | ?????????# #########??????????# #???????? | | ?????????# #??????????#""" #???????? | | ?????????# ####### ####???????#""" #???????? | | ?????????# """ #?????# #??######""" #??####?? | | ?????????# """ ########## #??#[ *[== #?## ##? | | ?????????# """ ##" !"##?# #??# #### #?# ## | | ?????????########""][""#?# ####%#??# ### # | | ????????????????# [[ !!#?# *=#??######## # | | ????????????????##%%=%##?# ######?????#### # | | ????????????????###++###?# ############ # | | ?###???????????## ! ### # | | ?# ???????????# %a@ ############## | | ?# #???????##### ####????????????##### | | ?# #??????## ### ## ########???????????## | | ?# #????### #### ### #???????????## | | ?# #???## #### #?# #??????????## | | ?# #???# ## #?## ###### #?????????## | | ## ##### # ## #??# #????# #???????### | | !% # ## #??# #????# #????#### # | | %%% = % ## ## #### #????# #???## ## | | ########### ### ## #????# #??## ##? | | ??????????####?# ## ######????# #?## ##?? | | ???????????????# ## #?????????# ### ##### | | ???????????????# ## #?????????# #?# | | ???????????????# = #?????????###### #?# | | ???????????????# ####??????????????### #?# < | | ???????????????# #???????????????????### ### | | ???????????????# #?????????????????????## %* | | ?????????##????#"#??????????????????##### | | ?????????? ###%####???????????????# ##### | | ?????????? ##??????????????# ##????? | | ?????????????? #??????????????# ####??????? | | ???????????????### ################ #?????????? | | ????????????????## =%% #??????#### | | ???????????????## ! #?????## | | ??????????????## ###################???### | +----------------------------------------------------+ Best States ------------- Heat Dissipation 25 Energy Generation 14 Energy Capacity 280 Matter Stores 300 Matter Capacity 300 Sight Range 18 Terrain Scan Density 10 Resistance: KI 20 Resistance: TH 20 Resistance: EX 20 Resistance: EM 20 Resistance: I 20 Resistance: S 20 Resistance: P 20 Evasion (%) 62 Item Schematics ----------------- None Robot Schematics ------------------ None Fabricated ------------ Nothing Alien Tech Used ----------------- None Achievements -------------- None Challenges ------------ None Game ------ Seed SiegeSwarmTrap Manual? 0 Play Time 00:21:21 Cumulative 56.4 hours Start 2019.10.27 @ 23:24:08 End 2019.10.27 @ 23:42:03 Sessions 1 Manual Loads 0 Difficulty Adventurer Special Mode None Game No. 94 Rogue 74 Adventurer 10 Explorer 1 Win Type - Total 0 Types 0/0/0/0/0/0/0 Lore% 28 Gallery% 44 Achievement% 32 Wizard Run 0 Options --------- ASCII 0 Keyboard 0 Movement Numpad Keybinds 0 Fullscreen 1 Font 12/Tallcaps Map View 83x54 Tactical HUD 1 Map Filters NONE Filters NONE Steam 1 RUN: 21b7f2ea-4bdb-49c7-b935-ebabe58e9323